bitfinex-derivatives/quotes_SOLF0:USTF0_20240904
["timestamp","ask_amount","ask_price","bid_price","bid_amount"]
[1725489354122,9.2,133.7,133.69,0.05526419]
[1725489354722,12.9399,133.7,133.69,0.05526419]
[1725489362544,3.7408,133.67,133.63,1.4152]
[1725489362827,9.2,133.68,133.63,10.6152]
[1725489363033,4.2214,133.73,133.65,9.2]
[1725489363224,9.2,133.72,133.67,9.2]
[1725489363728,3.7399,133.7,133.68,0.05089985]
[1725489363934,9.2,133.7,133.68,0.05089985]
[1725489364731,12.9401,133.69,133.68,0.05089985]
[1725489367732,0.05133463,133.71,133.68,0.05089985]
[1725489368229,12.94,133.7,133.68,0.05089985]
[1725489368425,9.2,133.69,133.68,0.05089985]
[1725489368932,12.9401,133.69,133.68,0.05089985]
[1725489370639,3.7401,133.69,133.68,0.05089985]
[1725489370830,12.9401,133.69,133.68,0.05089985]
[1725489377642,3.7401,133.69,133.68,0.05089985]
[1725489384449,12.9401,133.69,133.68,0.05089985]
[1725489386245,9.25133463,133.71,133.68,0.05089985]
[1725489386449,9.2,133.69,133.68,0.05089985]
[1725489388352,9.25133463,133.71,133.68,3.79129985]
[1725489389553,3.7399,133.7,133.68,3.79129985]
[1725489389752,0.05133463,133.71,133.7,3.7399]
[1725489389952,0.05133463,133.71,133.68,0.05089985]
[1725489392147,0.05133463,133.71,133.69,3.7399]
[1725489394857,0.05133463,133.71,133.69,3.7401]
[1725489395857,0.05133463,133.71,133.68,0.05089985]
[1725489395858,9.25133463,133.71,133.68,0.05089985]
[1725489396261,0.05133463,133.71,133.69,3.74]
[1725489397251,0.05133463,133.71,133.69,3.7401]
[1725489397659,0.05133463,133.71,133.68,0.05089985]
[1725489397961,0.05133463,133.71,133.7,3.7399]
[1725489398962,3.7389,133.74,133.7,9.2]
[1725489399353,9.2,133.75,133.7,9.2]
[1725489399757,9.2,133.75,133.72,3.7391]
[1725489399959,9.25198655,133.75,133.72,3.79236926]
[1725489400165,12.99058655,133.75,133.72,3.79236926]
[1725489400764,0.05198655,133.75,133.73,3.739]
[1725489401870,0.05198655,133.75,133.74,3.7387]
[1725489406683,0.05198655,133.75,133.73,3.7388]
[1725489406872,0.05198655,133.75,133.72,2.83666926]
[1725489407770,0.05198655,133.75,133.73,3.7388]
[1725489408880,0.05198655,133.75,133.74,3.7387]
[1725489409381,0.05198655,133.75,133.73,3.7388]
[1725489410778,0.05198655,133.75,133.74,3.7387]
[1725489412579,0.05198655,133.75,133.73,3.7388]
[1725489420791,0.05198655,133.75,133.74,12.9387]
[1725489421092,72.35775988,133.82,133.72,1.43086926]
[1725489421093,12.9373,133.8,133.76,3.738]
[1725489421487,9.2,133.8,133.76,3.738]
[1725489421687,81.55775988,133.82,133.76,3.738]
[1725489421892,81.55775988,133.82,133.78,0.05131381]
[1725489421893,0.05588582,133.8,133.78,0.05131381]
[1725489422090,3.79318582,133.8,133.78,0.05131381]
[1725489423193,3.7373,133.79,133.78,0.05131381]
[1725489426597,3.79298582,133.8,133.78,0.05131381]
[1725489427494,0.05588582,133.8,133.78,9.25131381]
[1725489428296,0.05588582,133.8,133.79,3.7373]
[1725489440006,0.05588582,133.8,133.79,12.9373]
[1725489442605,3.72038268,133.87,133.83,3.7362]
[1725489443197,3.7356,133.86,133.83,3.7362]
[1725489443505,3.7910076,133.86,133.83,3.79357457]
[1725489444305,0.0554076,133.86,133.83,0.05737457]
[1725489445008,0.0554076,133.86,133.84,3.7357]
[1725489445600,3.7908076,133.86,133.84,3.7357]
[1725489445806,3.7908076,133.86,133.83,3.79347457]
[1725489446902,31.66,133.84,133.62,239.59999062]
[1725489447106,9.2,133.77,133.7,2.811]
[1725489447306,3.7384,133.76,133.72,3.7391]
[1725489447804,3.7384,133.76,133.73,0.04818955]
[1725489447805,0.0553974,133.75,133.73,0.04818955]
[1725489450707,3.7387,133.74,133.73,0.04818955]
[1725489451102,9.2553974,133.75,133.59,130.24632323]
[1725489451306,3.7395,133.72,133.68,3.7404]
[1725489451506,9.2,133.73,133.66,12.93831775]
[1725489451902,3.69196261,133.78,133.66,12.93831775]
[1725489452110,9.2,133.72,133.71,0.04878263]
[1725489452613,12.9393,133.72,133.71,0.04878263]
[1725489453709,16.63197599,133.72,133.71,0.04878263]
[1725489454815,18.03127599,133.72,133.71,0.04878263]
[1725489457417,8.83127599,133.72,133.71,0.04878263]
[1725489457611,14.3386,133.72,133.71,0.04878263]
[1725489458315,18.1091745,133.72,133.71,0.04878263]
[1725489459414,3.7402,133.69,133.65,9.2]
[1725489460317,0.05660641,133.68,133.66,3.79752474]
[1725489461720,0.05660641,133.68,133.66,12.99752474]
[1725489461915,0.05660641,133.68,133.67,3.7407]
[1725489463713,0.05660641,133.68,133.66,0.05652474]
[1725489465227,0.05660641,133.68,133.66,3.79752474]
[1725489467230,0.05660641,133.68,133.66,0.05652474]
[1725489468330,3.79720641,133.68,133.66,0.05652474]
[1725489474034,0.05660641,133.68,133.66,3.79742474]
[1725489475338,0.05660641,133.68,133.67,3.7407]
[1725489477934,9.2,133.72,133.69,3.7399]
[1725489478137,12.9394,133.72,133.69,3.7399]
[1725489479033,12.99339042,133.72,133.69,3.79109358]
[1725489481237,12.99339042,133.72,133.69,0.05119358]
[1725489481238,9.2,133.71,133.69,0.05119358]
[1725489481532,9.2,133.7,133.69,0.05119358]
[1725489481739,12.9399,133.7,133.69,0.05119358]
[1725489483844,3.7396,133.71,133.69,0.05119358]
[1725489484043,9.2,133.71,133.69,0.05119358]
[1725489484441,12.9398,133.71,133.69,0.05119358]
[1725489484943,9.25399042,133.72,133.69,0.05119358]
[1725489485144,0.05399042,133.72,133.69,0.05119358]
[1725489485341,0.05399042,133.72,133.69,9.25119358]
[1725489485740,0.05399042,133.72,133.7,3.7399]
[1725489487037,0.05399042,133.72,133.71,3.7396]
[1725489499658,0.05399042,133.72,133.71,12.9396]
[1725489499856,9.2,133.78,133.75,3.7384]
[1725489500863,9.24845131,133.78,133.75,3.79428089]
[1725489501054,12.98635131,133.78,133.75,3.79428089]
[1725489501559,12.98635131,133.78,133.77,3.7379]
[1725489501560,0.04845131,133.78,133.77,3.7379]
[1725489503856,9.24845131,133.78,133.77,3.7379]
[1725489506155,0.04845131,133.78,133.77,3.7379]
[1725489512968,0.04845131,133.78,133.75,0.05588089]
[1725489513165,9.2,133.77,133.75,0.05588089]
[1725489513568,12.9379,133.77,133.75,0.05588089]
[1725489513769,9.2,133.77,133.75,0.05588089]
[1725489514472,9.2,133.76,133.75,0.05588089]
[1725489515164,12.9382,133.76,133.75,0.05588089]
[1725489516267,9.2,133.76,133.75,0.05588089]
[1725489516469,12.938,133.77,133.75,0.05588089]
[1725489521468,12.938,133.77,133.75,3.79428089]
[1725489521665,9.2,133.77,133.75,3.79428089]
[1725489523577,5.17835131,133.78,133.75,3.79428089]
[1725489526071,3.78615131,133.78,133.75,3.79428089]
[1725489526272,0.04845131,133.78,133.76,3.738]
[1725489526581,0.04845131,133.78,133.75,0.05588089]
[1725489526879,0.04845131,133.78,133.76,12.9379]
[1725489528887,0.04845131,133.78,133.77,3.7379]
[1725489530783,0.04845131,133.78,133.77,12.9379]
[1725489533888,0.04845131,133.78,133.77,3.7379]
[1725489541698,12.90231183,133.78,133.75,0.05588089]
[1725489541999,9.2,133.76,133.69,9.2]
[1725489542198,3.7389,133.74,133.7,3.7397]
[1725489542998,0.04920831,133.73,133.71,0.04780211]
[1725489550805,3.78830831,133.73,133.71,0.04780211]
[1725489551002,9.24920831,133.73,133.71,0.04780211]
[1725489551205,9.2,133.72,133.71,0.04780211]
[1725489551709,12.9393,133.72,133.71,0.04780211]
[1725489552404,3.7402,133.69,133.66,3.7409]
[1725489552601,9.2,133.7,133.65,12.88408686]
[1725489553104,12.94,133.7,133.67,3.7407]
[1725489553308,12.98743761,133.7,133.67,3.79563468]
[1725489554708,3.78743761,133.7,133.67,3.79563468]
[1725489557200,9.24743761,133.7,133.67,0.05493468]
[1725489557405,9.2,133.69,133.67,0.05493468]
[1725489557898,12.9403,133.69,133.67,0.05493468]
[1725489558100,9.2,133.69,133.67,0.05493468]
[1725489558713,3.7404,133.68,133.67,0.05493468]
[1725489562615,12.9404,133.68,133.67,0.05493468]
[1725489562915,3.7411,133.66,133.62,1.4151]
[1725489563113,12.9411,133.66,133.63,3.7417]
[1725489563811,12.99302884,133.66,133.63,3.79800838]
[1725489564513,9.25192884,133.66,133.63,0.05630838]
[1725489564715,9.2,133.65,133.63,0.05630838]
[1725489565103,3.7415,133.64,133.63,0.05630838]
[1725489572719,0.05192884,133.66,133.63,0.05630838]
[1725489573223,9.25192884,133.66,133.63,0.05630838]
[1725489573421,12.99302884,133.66,133.63,3.79800838]
[1725489574216,3.7413,133.65,133.63,3.79800838]
[1725489575824,0.05192884,133.66,133.63,0.05630838]
[1725489576824,0.05192884,133.66,133.64,3.7414]
[1725489580024,0.05192884,133.66,133.63,0.05630838]
[1725489581029,0.05192884,133.66,133.64,3.7414]
[1725489585226,3.79302884,133.66,133.63,3.79800838]
[1725489585424,3.79302884,133.66,133.63,0.05630838]
[1725489586030,0.05192884,133.66,133.64,3.7414]
[1725489589233,3.79302884,133.66,133.64,3.7414]
[1725489589435,9.2,133.65,133.63,0.05630838]
[1725489589632,9.2,133.64,133.63,0.05630838]
[1725489589939,12.9415,133.64,133.63,0.05630838]
[1725489590432,12.9415,133.64,133.57,11.8841]
[1725489590433,3.7423,133.62,133.57,2.6841]
[1725489590734,9.2,133.61,133.57,2.6841]
[1725489591439,12.9426,133.61,133.58,3.7432]
[1725489591737,0.05583664,133.6,133.58,3.79090868]
[1725489593333,0.05583664,133.6,133.59,3.7429]
[1725489600532,0.05583664,133.6,133.58,3.79080868]
[1725489601441,0.05583664,133.6,133.58,0.04770868]
[1725489601938,0.05583664,133.6,133.58,3.79090868]
[1725489602542,0.05583664,133.6,133.59,3.7429]
[1725489604743,0.05583664,133.6,133.58,0.04770868]
[1725489605542,0.05583664,133.6,133.58,3.79080868]
[1725489606345,12.9429,133.59,133.58,0.04770868]
[1725489610147,9.2,133.59,133.58,0.04770868]
[1725489611442,12.9429,133.59,133.58,0.04770868]
[1725489615447,3.744,133.56,133.53,3.7446]
[1725489615646,12.944,133.56,133.53,3.7446]
[1725489616753,13.00009907,133.56,133.53,3.79571244]
[1725489619253,9.2,133.54,133.53,0.05111244]
[1725489619555,0.05609907,133.56,133.53,0.05111244]
[1725489619556,3.68905863,133.55,133.53,0.05111244]
[1725489619752,12.9443,133.54,133.53,0.05111244]
[1725489620051,0.05609907,133.56,133.53,0.05111244]
[1725489620249,0.05609907,133.56,133.53,1.37791244]
[1725489620448,0.05609907,133.56,133.54,3.7442]
[1725489621653,9.2,133.61,133.54,9.2]
[1725489621842,3.7429,133.6,133.55,1.4416]
[1725489622455,3.7429,133.6,133.56,3.7435]
[1725489622655,0.04927206,133.59,133.57,0.04964568]
[1725489623153,0.04927206,133.59,133.57,3.79294568]
[1725489623451,0.04927206,133.59,133.57,0.04964568]
[1725489623754,0.04927206,133.59,133.58,3.7432]
[1725489628959,22.46,133.69,133.61,3.7422]
[1725489629156,9.2,133.65,133.59,1.4416]
[1725489629355,12.9418,133.64,133.59,1.4416]
[1725489629553,12.9418,133.64,133.6,3.7425]
[1725489629956,0.05678555,133.63,133.61,0.05630727]
[1725489630557,0.05678555,133.63,133.61,3.79860727]
[1725489630858,0.05678555,133.63,133.61,0.05630727]
[1725489631455,3.79868555,133.63,133.61,0.05630727]
[1725489633561,3.79868555,133.63,133.61,3.79870727]
[1725489637774,0.05678555,133.63,133.62,3.7421]
[1725489639570,1.348,133.69,133.62,9.2]
[1725489639759,9.2,133.68,133.62,9.2]
[1725489640764,0.04812346,133.66,133.65,9.2]
[1725489640964,9.2,133.71,133.65,10.5817]
[1725489641154,9.2,133.71,133.65,11.9796]
[1725489641355,3.7395,133.72,133.65,11.9796]
[1725489641665,12.9395,133.72,133.66,3.76880183]
[1725489641961,12.9395,133.72,133.66,12.96880183]
[1725489642166,0.05275122,133.7,133.68,0.05302526]
[1725489643067,12.99265122,133.7,133.68,0.05302526]
[1725489643266,0.05275122,133.7,133.68,0.05302526]
[1725489647171,0.05275122,133.7,133.68,3.79342526]
[1725489652472,0.05275122,133.7,133.68,0.05302526]
[1725489652679,0.05275122,133.7,133.69,3.7401]
[1725489652977,0.05275122,133.7,133.68,0.05302526]
[1725489655173,3.79275122,133.7,133.68,0.05302526]
[1725489658376,3.7401,133.69,133.68,0.05302526]
[1725489661195,3.79275122,133.7,133.68,0.05302526]
[1725489663789,3.7401,133.69,133.68,0.05302526]
[1725489664093,12.9401,133.69,133.68,0.05302526]
[1725489664692,3.7411,133.66,133.63,3.7417]
[1725489665186,3.7414,133.65,133.62,3.742]
[1725489665391,9.2,133.66,133.61,9.2]
[1725489665586,0.05620342,133.65,133.62,9.25370126]
[1725489665792,0.04980434,133.65,133.62,9.2513013]
[1725489666793,0.04980434,133.65,133.63,9.2]
[1725489667292,0.04980434,133.65,133.64,3.7415]
[1725489667891,3.74,133.7,133.64,9.2]
[1725489668096,3.74,133.7,133.66,9.2]
[1725489668893,0.04847436,133.69,133.67,0.04729774]
[1725489669398,3.78877436,133.69,133.67,0.04729774]
[1725489669788,3.78877436,133.69,133.67,3.78799774]
[1725489669994,0.04847436,133.69,133.67,3.78799774]
[1725489670798,3.78867436,133.69,133.67,0.04729774]
[1725489670994,12.98867436,133.69,133.67,0.04729774]
[1725489678107,12.9404,133.68,133.67,0.04729774]
[1725489683701,3.7404,133.68,133.67,0.04729774]
[1725489684612,12.98877436,133.69,133.67,0.04729774]
[1725489684813,9.24847436,133.69,133.67,0.04729774]
[1725489686517,3.7404,133.68,133.67,0.04729774]
[1725489689814,12.9404,133.68,133.67,0.04729774]
[1725489700924,3.7404,133.68,133.67,0.04729774]
[1725489708427,12.9404,133.68,133.67,0.04729774]
[1725489714731,3.7404,133.68,133.67,0.04729774]
[1725489715425,9.24847436,133.69,133.67,0.04729774]
[1725489715632,3.78676098,133.74,133.67,9.24729774]
[1725489715930,9.2,133.74,133.67,9.24729774]
[1725489716120,3.70724788,133.73,133.67,9.24729774]
[1725489716932,3.79416393,133.71,133.67,9.24729774]
[1725489717431,3.79416393,133.71,133.68,3.7404]
[1725489717931,0.05456393,133.71,133.67,9.24729774]
[1725489718626,0.05456393,133.71,133.69,3.74]
[1725489721627,0.05456393,133.71,133.7,3.7399]
[1725489722425,0.05456393,133.71,133.68,1.4383]
[1725489722635,3.74,133.7,133.67,1.38239774]
[1725489723030,9.25456393,133.71,133.68,3.7404]
[1725489723228,12.99426393,133.71,133.68,3.7404]
[1725489724125,3.7399,133.7,133.68,3.7404]
[1725489725632,3.7399,133.7,133.67,5.12289774]
[1725489725835,3.7399,133.7,133.67,3.78779774]
[1725489727532,3.7402,133.69,133.67,3.78779774]
[1725489727835,9.25456393,133.71,133.67,3.78779774]
[1725489728536,3.74,133.7,133.67,3.78779774]
[1725489731730,3.7402,133.69,133.67,0.04729774]
[1725489732240,3.7402,133.69,133.67,3.78799774]
[1725489733341,9.25456393,133.71,133.67,0.04729774]
[1725489733342,3.7404,133.68,133.67,0.04729774]
[1725489735643,9.25456393,133.71,133.67,3.78789774]
[1725489735844,0.05456393,133.71,133.67,3.78789774]
[1725489736141,0.05456393,133.71,133.67,9.24729774]
[1725489737344,3.74,133.7,133.68,3.7404]
[1725489737844,3.79426393,133.71,133.68,3.7404]
[1725489738048,3.79426393,133.71,133.67,12.08419774]
[1725489738542,3.79426393,133.71,133.68,3.7404]
[1725489741941,3.79426393,133.71,133.69,3.7401]
[1725489742945,0.05456393,133.71,133.69,3.7401]
[1725489749052,0.05456393,133.71,133.7,12.9399]
[1725489760465,0.05456393,133.71,133.7,3.7399]
[1725489761360,0.05456393,133.71,133.69,3.74]
[1725489761562,3.79416393,133.71,133.69,3.74]
[1725489761762,0.05456393,133.71,133.69,9.2]
[1725489761971,0.05456393,133.71,133.7,12.9399]
[1725489764775,3.7386,133.75,133.72,3.7392]
[1725489765373,3.7388,133.74,133.71,3.7395]
[1725489765876,3.79089748,133.74,133.71,3.79170874]
[1725489766577,3.739,133.73,133.71,0.05220874]
[1725489766876,9.25209748,133.74,133.71,0.05220874]
[1725489767779,3.7393,133.72,133.71,0.05220874]
[1725489782592,12.9393,133.72,133.71,0.05220874]
[1725489782789,14.2648,133.72,133.71,0.05220874]
[1725489793396,3.7406,133.68,133.63,9.2]
[1725489793792,3.7407,133.67,133.64,3.7414]
[1725489794400,3.741,133.66,133.64,0.05252088]
[1725489796303,3.7412,133.66,133.64,0.05252088]
[1725489796600,9.2,133.66,133.64,0.05252088]
[1725489796805,3.7413,133.65,133.64,0.05252088]
[1725489798802,0.05084974,133.67,133.64,0.05252088]
[1725489798803,3.7411,133.66,133.64,0.05252088]
[1725489805104,0.05084974,133.67,133.64,0.05252088]
[1725489805105,3.79164974,133.67,133.64,3.79402088]
[1725489805611,3.79164974,133.67,133.65,3.7412]
[1725489806003,3.79164974,133.67,133.64,0.05252088]
[1725489806004,3.741,133.66,133.64,0.05252088]
[1725489809518,3.741,133.66,133.64,3.79402088]
[1725489809818,3.79174974,133.67,133.64,9.25252088]
[1725489810009,0.05084974,133.67,133.65,3.7411]
[1725489811418,3.79154974,133.67,133.65,3.7411]
[1725489814521,3.79154974,133.67,133.64,3.79392088]
[1725489816015,3.741,133.66,133.64,3.79392088]
[1725489821934,3.79174974,133.67,133.65,3.7412]
[1725489826837,3.79174974,133.67,133.64,3.79392088]
[1725489828837,3.741,133.66,133.64,0.05252088]
[1725489829037,9.25084974,133.67,133.64,0.05252088]
[1725489830441,3.7413,133.65,133.64,0.05252088]
[1725489831631,12.9413,133.65,133.64,0.05252088]
[1725489836144,31.67,133.65,133.56,2.744]
[1725489836346,9.2,133.61,133.56,2.744]
[1725489836946,12.85390925,133.61,133.56,2.744]
[1725489837250,3.7432,133.58,133.57,0.05457922]
[1725489837754,3.7439,133.56,133.52,3.7447]
[1725489837940,3.7439,133.56,133.51,9.2]
[1725489838245,3.7439,133.56,133.51,12.85877464]
[1725489838840,9.2,133.58,133.51,12.85877464]
[1725489838841,3.79657015,133.55,133.52,3.79752737]
[1725489840247,9.2,133.54,133.52,0.05292737]
[1725489840453,0.05247015,133.55,133.52,0.05292737]
[1725489840454,9.2,133.53,133.52,0.05292737]
[1725489840746,0.05247015,133.55,133.52,0.05292737]
[1725489840944,12.8864375,133.54,133.52,0.05292737]
[1725489841149,3.6864375,133.54,133.52,0.05292737]
[1725489841348,3.7446,133.53,133.52,0.05292737]
[1725489842057,3.7449,133.52,133.48,9.2]
[1725489842250,3.7449,133.52,133.48,12.9458]
[1725489842950,3.7449,133.52,133.49,12.9456]
[1725489843141,0.0575919,133.51,133.49,12.99466467]
[1725489843348,1.363,133.59,133.51,3.7451]
[1725489843349,9.2,133.58,133.51,3.7451]
[1725489843544,9.2,133.58,133.52,9.2]
[1725489843847,3.7442,133.55,133.52,9.2]
[1725489844256,3.7443,133.54,133.52,9.2]
[1725489844556,3.79527142,133.54,133.52,9.2521874]
[1725489844746,0.05097142,133.54,133.52,12.9969874]
[1725489846352,0.05097142,133.54,133.52,0.0521874]
[1725489847156,3.79537142,133.54,133.52,0.0521874]
[1725489847344,0.05097142,133.54,133.52,0.0521874]
[1725489847749,0.05097142,133.54,133.52,3.7968874]
[1725489847950,0.05097142,133.54,133.52,12.9968874]
[1725489848349,0.05097142,133.54,133.52,9.2521874]
[1725489849556,0.05097142,133.54,133.53,3.7446]
[1725489861652,3.7433,133.58,133.53,9.2]
[1725489861854,9.2,133.62,133.55,9.2]
[1725489862051,1.3964,133.63,133.56,9.2]
[1725489862254,3.7429,133.6,133.56,12.9436]
[1725489862761,0.05299231,133.59,133.57,0.05519757]
[1725489863161,0.05299231,133.59,133.57,3.79859757]
[1725489871374,0.05299231,133.59,133.57,9.25519757]
[1725489871675,9.2,133.66,133.6,9.2]
[1725489871863,9.2,133.66,133.61,3.7422]
[1725489871864,3.7414,133.65,133.61,3.7422]
[1725489872371,3.7417,133.64,133.6,7.49774788]
[1725489872576,0.05260394,133.63,133.61,0.05117156]
[1725489872871,0.05260394,133.63,133.61,9.25117156]
[1725489873077,0.05260394,133.63,133.62,3.7421]
[1725489874773,0.05260394,133.63,133.61,14.35487156]
[1725489874970,0.05260394,133.63,133.61,10.61257156]
[1725489875278,0.05260394,133.63,133.61,1.41257156]
[1725489875670,0.05260394,133.63,133.61,5.15477156]
[1725489877573,0.05260394,133.63,133.62,3.7421]
[1725489884085,10.5516,133.69,133.62,9.2]
[1725489884777,3.7409,133.67,133.64,3.7414]
[1725489885179,3.79703521,133.67,133.64,3.79057632]
[1725489886182,0.05613521,133.67,133.65,3.7412]
[1725489891698,9.2,133.66,133.64,0.04917632]
[1725489891892,0.05613521,133.67,133.64,0.04917632]
[1725489891893,3.7413,133.65,133.64,0.04917632]
[1725489892092,9.2,133.66,133.64,0.04917632]
[1725489892293,0.05613521,133.67,133.64,0.04917632]
[1725489892691,0.05613521,133.67,133.64,9.24917632]
[1725489892889,0.05613521,133.67,133.64,0.04917632]
[1725489893100,0.05613521,133.67,133.64,12.99067632]
[1725489895796,0.05613521,133.67,133.65,3.7411]
[1725489896196,0.05613521,133.67,133.65,12.9411]
[1725489900092,0.05613521,133.67,133.66,3.741]
[1725489902507,0.05613521,133.67,133.65,3.7411]
[1725489903700,3.79683521,133.67,133.65,3.7411]
[1725489904306,3.79683521,133.67,133.65,3.7412]
[1725489904502,3.741,133.66,133.64,0.04917632]
[1725489906504,3.7413,133.65,133.64,0.04917632]
[1725489907303,3.7411,133.66,133.64,0.04917632]
[1725489910406,3.7411,133.66,133.64,3.79067632]
[1725489911607,3.79693521,133.67,133.65,3.7412]
[1725489911807,3.79693521,133.67,133.65,12.9412]
[1725489912409,3.79693521,133.67,133.65,3.7412]
[1725489913408,3.79693521,133.67,133.64,3.79057632]
[1725489913612,3.79693521,133.67,133.64,0.04917632]
[1725489913613,9.25613521,133.67,133.64,0.04917632]
[1725489914700,3.7413,133.65,133.64,0.04917632]
[1725489923712,12.9413,133.65,133.64,0.04917632]
[1725489933621,3.7413,133.65,133.64,0.04917632]
[1725489934427,0.05613521,133.67,133.64,0.04917632]
[1725489934722,0.05613521,133.67,133.66,9.2]
[1725489934929,0.05613521,133.67,133.64,9.24917632]
[1725489935522,0.05613521,133.67,133.65,3.7411]
[1725489936717,0.05613521,133.67,133.66,12.941]
[1725489939031,0.05613521,133.67,133.66,3.741]
[1725489939335,0.05613521,133.67,133.64,0.04917632]
[1725489940423,3.79693521,133.67,133.64,3.79047632]
[1725489941633,0.05613521,133.67,133.65,3.7412]
[1725489942138,0.05613521,133.67,133.66,3.741]
[1725489942729,0.05613521,133.67,133.66,12.941]
[1725489946652,3.7403,133.69,133.67,3.7406]
[1725489947653,3.79672262,133.69,133.67,3.7406]
[1725489949249,3.79672262,133.69,133.66,3.7408]
[1725489950551,3.7406,133.68,133.65,1.3896]
[1725489950746,0.05642262,133.69,133.65,1.3896]
[1725489951548,3.79672262,133.69,133.66,3.7408]
[1725489952450,0.05642262,133.69,133.68,9.2]
[1725489952644,9.2,133.73,133.66,1.3461]
[1725489952844,141.51548694,133.77,133.66,1.3461]
[1725489952845,9.2,133.72,133.66,1.3461]
[1725489953045,3.74,133.7,133.66,1.3461]
[1725489953650,0.04949041,133.69,133.67,3.79608883]
[1725489954856,0.04949041,133.69,133.68,3.7404]
[1725489956644,71.85630071,133.77,133.68,9.2]
[1725489956842,9.2,133.76,133.7,9.2]
[1725489957049,3.7387,133.74,133.7,9.2]
[1725489957550,3.7387,133.74,133.71,3.7394]
[1725489957745,3.79534009,133.74,133.71,3.79030476]
[1725489958343,0.05664009,133.74,133.72,3.7392]
[1725489961857,0.05664009,133.74,133.73,3.739]
[1725489963954,3.738,133.77,133.74,3.7386]
[1725489965061,3.7897452,133.77,133.74,3.7932307]
[1725489967662,0.0517452,133.77,133.76,3.7382]
[1725489971558,0.0517452,133.77,133.75,3.7383]
[1725489971861,0.0517452,133.77,133.74,1.3943307]
[1725489972456,3.7896452,133.77,133.74,5.1329307]
[1725489973461,0.0517452,133.77,133.74,0.0546307]
[1725489973656,9.2517452,133.77,133.74,0.0546307]
[1725489973963,12.9385,133.75,133.74,0.0546307]
[1725489975860,3.7385,133.75,133.74,0.0546307]
[1725489994769,0.0517452,133.77,133.74,0.0546307]
[1725489995269,0.0517452,133.77,133.74,3.7932307]
[1725489995480,3.7898452,133.77,133.74,3.7932307]
[1725489998373,0.0517452,133.77,133.75,3.7383]
[1725489998578,0.0517452,133.77,133.76,9.2]
[1725489998975,9.2,133.82,133.77,3.7378]
[1725489998976,3.7373,133.79,133.77,3.7378]
[1725489999175,1.3261,133.83,133.77,9.2]
[1725489999375,83.85517709,133.84,133.77,9.2]
[1725489999576,3.7369,133.81,133.78,3.7375]
[1725490000070,3.7369,133.81,133.78,3.79047369]
[1725490006577,3.7372,133.8,133.78,0.05297369]
[1725490006772,97.11517709,133.84,133.78,0.05297369]
[1725490006773,9.2,133.81,133.78,0.05297369]
[1725490006983,3.7373,133.79,133.78,0.05297369]
[1725490009579,3.7372,133.8,133.78,0.05297369]
[1725490009985,9.2,133.83,133.78,0.05297369]
[1725490010183,74.65517709,133.84,133.78,3.79047369]
[1725490010387,9.2,133.83,133.78,3.79047369]
[1725490010885,3.737,133.81,133.78,3.79047369]
[1725490011076,74.65517709,133.84,133.79,3.7373]
[1725490011284,83.85517709,133.84,133.79,3.7373]
[1725490011686,3.7366,133.82,133.79,3.7373]
[1725490013092,3.7364,133.83,133.8,3.737]
[1725490013693,3.7365,133.82,133.8,3.737]
[1725490017292,1.3221,133.86,133.8,12.937]
[1725490017492,3.67281454,133.86,133.83,9.2]
[1725490017691,9.2,133.88,133.83,9.2]
[1725490017994,3.7358,133.85,133.83,9.2]
[1725490019296,22.46,133.86,133.82,0.04733976]
[1725490019591,9.2,133.84,133.82,0.04733976]
[1725490019799,3.73028921,133.83,133.82,0.04733976]
[1725490020098,9.2,133.83,133.75,2.7733]
[1725490020287,13.02519991,133.83,133.77,9.2]
[1725490020494,9.2,133.83,133.77,9.2]
[1725490020795,3.7369,133.81,133.77,9.2]
[1725490020997,3.7369,133.81,133.77,12.94112547]
[1725490021294,0.05092545,133.8,133.78,0.05479089]
[1725490021690,0.2138,133.9,133.79,9.2]
[1725490021886,12.911606,133.87,133.81,9.2]
[1725490022098,3.7356,133.86,133.82,3.7364]
[1725490022491,12.911606,133.87,133.82,3.7364]
[1725490022703,3.7358,133.85,133.82,3.7364]
[1725490022887,3.7358,133.85,133.83,0.05281051]
[1725490027398,9.2,133.85,133.83,0.05281051]